bitfinex-derivatives/quotes_SOLF0:USTF0_20260312
["timestamp","ask_amount","ask_price","bid_price","bid_amount"]
[1773352444989,36.48,86.356,86.321,10.425]
[1773352445293,10.42,86.368,86.322,13.18027863]
[1773352445688,10.419,86.376,86.325,13.18027863]
[1773352446295,10.419,86.373,86.325,13.18027863]
[1773352447887,10.42,86.366,86.325,13.18027863]
[1773352452192,10.42,86.36,86.325,13.18027863]
[1773352454197,10.42,86.367,86.325,13.18027863]
[1773352454891,10.42,86.361,86.325,13.18027863]
[1773352456290,3.43265548,86.37,86.325,13.18027863]
[1773352458000,10.42,86.363,86.325,13.18027863]
[1773352462500,10.421,86.356,86.325,13.18027863]
[1773352465609,36.48,86.375,86.326,13.18575388]
[1773352465809,3.43265548,86.38,86.331,13.18575388]
[1773352466916,10.419,86.375,86.334,10.424]
[1773352467120,10.419,86.375,86.335,13.17939549]
[1773352467314,5.0606045,86.419,86.36,3.43265548]
[1773352467513,5.0606045,86.419,86.318,162.181]
[1773352467514,5.0606045,86.419,86.382,10.418]
[1773352468518,5.0606045,86.429,86.382,10.418]
[1773352469210,5.0606045,86.429,86.342,36.48]
[1773352469211,3.43265548,86.45,86.39,3.43265548]
[1773352469411,5.10621085,86.452,86.4,3.43265548]
[1773352469722,3.43265548,86.46,86.4,3.43265548]
[1773352469920,36.46,86.463,86.41,3.43265548]
[1773352470118,36.46,86.463,86.379,14.34365333]
[1773352470119,36.46,86.463,86.42,3.43265548]
[1773352470320,5.10621085,86.489,86.43,3.43265548]
[1773352471317,36.46,86.495,86.44,3.43265548]
[1773352471822,5.08580255,86.499,86.44,3.43265548]
[1773352472220,5.08580255,86.489,86.43,3.43265548]
[1773352472420,5.08580255,86.489,86.432,10.412]
[1773352473822,5.08580255,86.489,86.441,10.411]
[1773352474523,10.404,86.5,86.43,10.412]
[1773352474524,8.53070832,86.48,86.43,10.412]
[1773352474718,5.09805284,86.479,86.43,10.412]
[1773352477425,3.43265548,86.49,86.449,10.41]
[1773352478322,3.43265548,86.48,86.439,10.411]
[1773352478821,5.06031744,86.489,86.439,10.411]
[1773352479021,3.43265548,86.48,86.439,10.411]
[1773352480921,3.43265548,86.47,86.43,10.412]
[1773352483922,3.43265548,86.47,86.438,10.411]
[1773352484525,5.06877104,86.479,86.438,10.411]
[1773352491136,5.06877104,86.479,86.41,36.46]
[1773352491137,5.06877104,86.479,86.445,10.41]
[1773352491836,3.43265548,86.48,86.445,10.41]
[1773352495639,3.43265548,86.48,86.437,10.411]
[1773352495838,3.43265548,86.48,86.42,3.43265548]
[1773352496440,8.49198547,86.48,86.42,3.43265548]
[1773352496741,5.06153812,86.499,86.43,3.43265548]
[1773352497832,10.405,86.492,86.452,10.409]
[1773352499340,3.43265548,86.49,86.452,10.409]
[1773352500444,5.083629,86.488,86.452,10.409]
[1773352501841,5.0837572,86.486,86.445,10.41]
[1773352502345,10.406,86.482,86.445,10.41]
[1773352502745,5.0837572,86.486,86.445,10.41]
[1773352503645,5.0837572,86.486,86.451,10.409]
[1773352504945,5.09649069,86.482,86.443,10.41]
[1773352505146,5.09649069,86.479,86.41,3.43265548]
[1773352505352,5.09649069,86.469,86.41,3.43265548]
[1773352505945,5.09649069,86.469,86.371,193.26472516]
[1773352505946,5.09649069,86.459,86.4,3.43265548]
[1773352506844,5.09649069,86.459,86.423,10.413]
[1773352508251,15.50730998,86.456,86.414,10.414]
[1773352508551,15.50730998,86.456,86.4,3.43265548]
[1773352508848,5.09830998,86.456,86.4,3.43265548]
[1773352509652,5.09830998,86.456,86.41,3.42559855]
[1773352510655,5.10343363,86.469,86.42,3.42559855]
[1773352510853,5.10343363,86.469,86.43,3.42559855]
[1773352511655,5.10343363,86.469,86.399,14.26472516]
[1773352511656,5.10343363,86.469,86.42,3.42559855]
[1773352512956,5.10343363,86.469,86.436,10.411]
[1773352525763,5.13115205,86.459,86.425,14.26472516]
[1773352526066,5.13115205,86.459,86.416,14.26472516]
[1773352527463,5.13115205,86.459,86.417,14.26472516]
[1773352527864,5.13115205,86.459,86.426,10.412]
[1773352536576,5.14555043,86.457,86.419,10.413]
[1773352537072,5.14555043,86.457,86.414,14.26472516]
[1773352537982,5.14555043,86.457,86.425,10.413]
[1773352538373,5.14259309,86.455,86.419,10.413]
[1773352538678,5.14259309,86.455,86.41,14.26472516]
[1773352538979,5.14259309,86.455,86.411,14.26472516]
[1773352539878,5.14259309,86.455,86.425,10.413]
[1773352553795,5.19545714,86.462,86.425,10.413]
[1773352554896,5.19555354,86.46,86.425,10.413]
[1773352569410,5.16713332,86.458,86.42,24.67772516]
[1773352570313,5.16713332,86.458,86.421,14.26472516]
[1773352570804,5.16713332,86.458,86.422,10.413]
[1773352573012,5.16713332,86.458,86.424,14.26472516]
[1773352573809,5.16713332,86.458,86.425,14.26472516]
[1773352574004,10.408,86.466,86.425,14.26472516]
[1773352574200,10.408,86.466,86.41,3.42521049]
[1773352574201,5.17636539,86.465,86.426,14.26472516]
[1773352574911,5.17636539,86.465,86.43,10.412]
[1773352575110,5.17426742,86.463,86.426,14.26472516]
[1773352575711,5.17426742,86.473,86.426,14.26472516]
[1773352575906,5.17426742,86.473,86.428,14.26472516]
[1773352576914,5.17426742,86.473,86.431,10.412]
[1773352578410,5.16693801,86.491,86.446,10.41]
[1773352578610,5.16693801,86.491,86.449,14.26472516]
[1773352579003,5.16693801,86.491,86.44,3.42521049]
[1773352579004,5.16693801,86.491,86.451,24.67372516]
[1773352579210,5.1680305,86.502,86.45,3.42521049]
[1773352579506,5.1680305,86.502,86.45,17.68993565]
[1773352579809,5.1680305,86.515,86.46,3.42521049]
[1773352580412,5.1680305,86.515,86.476,10.406]
[1773352580606,13.82521049,86.53,86.476,10.406]
[1773352580607,5.1680305,86.529,86.476,10.406]
[1773352586215,5.25332053,86.527,86.476,10.406]
[1773352586416,3.42521049,86.52,86.476,10.406]
[1773352588715,3.42521049,86.52,86.482,10.406]
[1773352593428,8.68145249,86.52,86.482,10.406]
[1773352593622,5.256242,86.519,86.482,10.406]
[1773352604942,5.256242,86.519,86.47,3.42521049]
[1773352605840,5.256242,86.519,86.483,10.406]
[1773352615952,5.27261285,86.549,86.49,3.42521049]
[1773352616342,36.4,86.569,86.49,3.42521049]
[1773352616343,5.27261285,86.539,86.49,3.42521049]
[1773352616551,5.27261285,86.539,86.499,10.404]
[1773352619154,5.25990923,86.529,86.47,3.42521049]
[1773352619349,5.25990923,86.529,86.471,14.26472516]
[1773352619747,5.25990923,86.529,86.451,20.819]
[1773352619748,5.25990923,86.509,86.456,14.26472516]
[1773352619955,5.25990923,86.509,86.456,11.32714906]
[1773352620146,5.25990923,86.499,86.454,14.26472516]
[1773352620348,5.25990923,86.489,86.439,14.26472516]
[1773352620552,5.25990923,86.489,86.439,11.50290956]
[1773352620854,5.25990923,86.489,86.459,10.408]
[1773352621048,5.25990923,86.489,86.439,14.26472516]
[1773352621956,5.25990923,86.489,86.447,10.41]
[1773352623053,5.25990923,86.489,86.453,10.409]
[1773352626256,5.27766554,86.485,86.447,14.26472516]
[1773352626451,5.27766554,86.485,86.444,10.41]
[1773352627258,5.27785388,86.477,86.436,10.411]
[1773352628458,5.27785388,86.469,86.427,10.412]
[1773352629259,5.28025543,86.467,86.427,10.412]
[1773352634763,5.28025543,86.467,86.433,10.412]
[1773352640962,3.42513721,86.49,86.44,3.42513721]
[1773352641164,5.26607308,86.509,86.45,3.42513721]
[1773352641764,5.26607308,86.509,86.425,14.26472516]
[1773352641765,5.26607308,86.506,86.464,10.408]
[1773352641972,5.26607308,86.506,86.46,3.42513721]
[1773352642470,5.26607308,86.506,86.471,10.407]
[1773352642672,5.26607308,86.519,86.47,3.42513721]
[1773352643071,5.26607308,86.519,86.48,3.42513721]
[1773352643270,5.26607308,86.519,86.47,3.42513721]
[1773352643875,5.26607308,86.519,86.483,10.406]
[1773352667284,5.26607308,86.519,86.476,10.406]
[1773352667483,5.26668603,86.499,86.452,14.26472516]
[1773352667687,5.26668603,86.499,86.44,3.42513721]
[1773352667688,5.26668603,86.499,86.443,14.26472516]
[1773352668890,5.26668603,86.499,86.46,10.408]
[1773352672295,5.26668603,86.499,86.467,10.408]
[1773352681103,5.24698451,86.526,86.48,3.42513721]
[1773352681505,5.24698451,86.526,86.492,10.405]
[1773352681805,5.24698451,86.539,86.48,3.42513721]
[1773352682405,5.24698451,86.539,86.498,10.404]
[1773352688813,3.42513721,86.53,86.498,10.404]
[1773352691716,5.24698451,86.539,86.498,10.404]
[1773352698022,5.24698451,86.539,86.507,10.403]
[1773352703422,15.64598451,86.539,86.499,10.404]
[1773352703622,5.20521265,86.538,86.499,10.404]
[1773352703824,3.41983817,86.53,86.499,10.404]
[1773352710233,8.63128431,86.53,86.499,10.404]
[1773352713123,5.230343,86.55,86.49,3.41983817]
[1773352713326,8.65018117,86.55,86.49,3.41983817]
[1773352714235,5.230343,86.559,86.517,10.401]
[1773352714930,10.397,86.558,86.517,10.401]
[1773352717127,5.230343,86.559,86.522,10.401]
[1773352723445,10.396,86.564,86.51,3.41983817]
[1773352723446,3.41983817,86.57,86.51,3.41983817]
[1773352723646,5.19927492,86.574,86.52,3.41983817]
[1773352723846,5.19927492,86.574,86.53,3.41983817]
[1773352724239,36.4,86.589,86.53,3.41983817]
[1773352724444,5.19927492,86.588,86.53,3.41983817]
[1773352724947,5.19827786,86.586,86.54,10.399]
[1773352725143,3.41983817,86.58,86.54,10.399]
[1773352725646,3.41983817,86.58,86.546,10.398]
[1773352725845,5.19827786,86.586,86.546,10.398]
[1773352727644,3.41983817,86.59,86.552,10.397]
[1773352727848,5.20962153,86.63,86.58,3.41983817]
[1773352728344,8.6294597,86.63,86.58,3.41983817]
[1773352728944,8.6294597,86.63,86.591,10.393]
[1773352729244,5.20962153,86.63,86.591,10.393]
[1773352729450,3.41983817,86.64,86.591,10.393]
[1773352729847,8.64181906,86.64,86.591,10.393]
[1773352730043,5.22198089,86.639,86.591,10.393]
[1773352730254,5.22198089,86.629,86.559,36.4]
[1773352730447,3.41983817,86.61,86.559,36.4]
[1773352730749,8.64181906,86.61,86.559,36.4]
[1773352730954,5.22198089,86.609,86.559,36.4]
[1773352731653,5.22198089,86.609,86.55,3.41983817]
[1773352731853,5.22198089,86.609,86.565,10.396]
[1773352734357,5.22198089,86.609,86.55,3.41983817]
[1773352734358,5.22198089,86.609,86.556,10.397]
[1773352735059,36.38,86.634,86.537,36.38]
[1773352735060,3.41983817,86.59,86.546,10.398]
[1773352735255,5.19700759,86.599,86.546,10.398]
[1773352735455,3.41983817,86.59,86.546,10.398]
[1773352737354,5.19700759,86.599,86.546,10.398]
[1773352737658,5.19700759,86.599,86.554,10.397]
[1773352739462,5.19700759,86.599,86.561,10.396]
[1773352745664,5.15214457,86.609,86.568,10.395]
[1773352747264,5.15214457,86.609,86.574,10.395]
[1773352748671,5.15214457,86.609,86.58,10.394]
[1773352748969,5.15023186,86.621,86.58,10.394]
[1773352750068,3.41983817,86.63,86.58,10.394]
[1773352750069,5.1392825,86.619,86.58,10.394]
[1773352753271,5.1392825,86.619,86.586,10.393]
[1773352753464,5.1392825,86.619,86.57,3.41983817]
[1773352753664,5.12655826,86.629,86.57,3.41243072]
[1773352754065,5.12655826,86.668,86.6,3.41243072]
[1773352754265,5.12655826,86.668,86.562,14.37636919]
[1773352754266,5.12655826,86.659,86.61,3.41243072]
[1773352754666,5.12655826,86.657,86.621,10.389]
[1773352755070,5.12655826,86.657,86.61,3.41243072]
[1773352755877,5.12655826,86.657,86.614,10.39]
[1773352756772,5.12655826,86.657,86.62,10.389]
[1773352757275,5.11715021,86.668,86.62,3.41243072]
[1773352757670,5.11715021,86.668,86.629,10.388]
[1773352759179,5.10221455,86.659,86.621,10.389]
[1773352760075,5.10221455,86.649,86.583,14.25032781]
[1773352760276,5.10221455,86.649,86.59,3.41243072]
[1773352760477,5.10221455,86.629,86.58,3.41243072]
[1773352760679,5.10221455,86.629,86.587,10.393]
[1773352761482,36.36,86.654,86.579,10.394]
[1773352761483,5.09778425,86.619,86.579,10.394]
[1773352761678,5.09778425,86.609,86.56,3.41243072]
[1773352762077,5.09778425,86.609,86.576,10.394]
[1773352765786,5.09778425,86.609,86.568,10.395]
[1773352776191,5.09778425,86.609,86.574,10.395]
[1773352778592,5.09778425,86.609,86.566,10.396]
[1773352778793,5.09778425,86.609,86.556,14.25032781]
[1773352778989,3.41243072,86.6,86.556,14.25032781]
[1773352779292,5.02092481,86.579,86.53,3.41243072]
[1773352780788,5.02092481,86.579,86.52,14.25032781]
[1773352780994,5.02092481,86.579,86.52,3.41243072]
[1773352781186,4.97451251,86.569,86.52,3.41243072]
[1773352781390,4.97451251,86.569,86.51,3.41243072]
[1773352782994,4.97386895,86.567,86.519,10.401]
[1773352783891,4.97386895,86.566,86.519,10.401]
[1773352784497,4.97386895,86.566,86.525,10.401]
[1773352786195,4.97386895,86.566,86.52,3.41243072]
[1773352786196,4.96748702,86.579,86.536,10.399]
[1773352786396,4.96748702,86.579,86.52,3.41243072]
[1773352787998,4.97176151,86.578,86.535,10.399]
[1773352790191,3.41243072,86.57,86.535,10.399]
[1773352793510,4.97863879,86.569,86.535,10.399]
[1773352794714,4.97863879,86.549,86.494,14.25032781]
[1773352795008,4.97863879,86.549,86.49,3.41243072]
[1773352795313,4.97863879,86.549,86.518,10.401]
[1773352795711,15.37663879,86.549,86.507,10.403]
[1773352796015,4.97863879,86.549,86.497,11.72293362]
[1773352796214,4.97863879,86.549,86.5,3.41243072]
[1773352797011,3.41243072,86.53,86.48,3.41243072]
[1773352797210,4.97288658,86.539,86.48,3.41243072]
[1773352797611,4.97288658,86.539,86.48,15.03707756]
[1773352798218,4.97288658,86.539,86.503,10.403]
[1773352799922,10.4,86.534,86.485,10.405]
[1773352800124,4.97288658,86.539,86.485,10.405]
[1773352800321,4.98851137,86.509,86.451,36.38]
[1773352800522,4.98851137,86.489,86.454,10.409]
[1773352800815,4.98851137,86.489,86.43,3.41243072]
[1773352801018,4.98851137,86.489,86.437,10.411]
[1773352801320,4.99255686,86.449,86.39,3.41243072]
[1773352801523,4.99255686,86.492,86.44,3.41243072]
[1773352802019,4.99255686,86.492,86.45,3.41243072]
[1773352802615,4.99255686,86.492,86.384,34.69]
[1773352802616,4.99255686,86.492,86.46,3.41243072]
[1773352803216,4.7703785,86.515,86.48,3.41243072]
[1773352803418,4.7703785,86.539,86.5,3.41243072]
[1773352804024,4.7703785,86.566,86.53,3.41243072]
[1773352806315,4.7703785,86.566,86.456,20.818]
[1773352806316,4.7703785,86.566,86.462,14.23623795]
[1773352806520,4.87992355,86.559,86.5,3.41243072]
[1773352806921,4.9178067,86.546,86.5,3.41243072]
[1773352807119,4.9178067,86.546,86.49,3.41243072]
[1773352807725,4.9178067,86.541,86.49,3.41243072]
[1773352808419,4.9178067,86.541,86.51,3.41243072]
[1773352811426,4.9178067,86.541,86.5,3.41243072]
[1773352812420,3.41243072,86.56,86.5,3.41243072]
[1773352812421,4.90653254,86.539,86.5,3.41243072]
[1773352812627,4.90653254,86.539,86.49,3.41243072]
[1773352813621,4.90422191,86.537,86.49,3.41959958]
[1773352814224,4.90422191,86.532,86.48,3.41959958]
[1773352814619,4.90422191,86.532,86.47,3.41959958]
[1773352814824,3.41959958,86.53,86.47,3.41959958]
[1773352815021,4.86808774,86.529,86.47,3.41959958]
[1773352815428,4.86808774,86.519,86.47,3.41959958]
[1773352816424,4.86808774,86.516,86.47,3.41959958]
[1773352816632,4.86808774,86.509,86.45,3.41959958]
[1773352817134,4.86808774,86.509,86.46,3.41959958]
[1773352817729,4.86808774,86.509,86.45,3.41959958]
[1773352817933,4.84835039,86.499,86.45,3.41959958]
[1773352818724,4.84835039,86.486,86.44,3.41959958]
[1773352819734,4.84835039,86.486,86.43,3.41959958]
[1773352819926,4.8485387,86.483,86.44,3.41959958]
[1773352820431,10.406,86.477,86.44,3.41959958]
[1773352821334,15.25628092,86.477,86.44,3.41959958]
[1773352822736,4.85028092,86.474,86.43,3.41959958]
[1773352825933,4.87147671,86.471,86.43,3.41959958]
[1773352827238,4.87147671,86.471,86.42,3.41959958]
[1773352829537,4.87147671,86.471,86.417,10.413]
[1773352830845,10.406,86.48,86.425,10.413]
[1773352831339,15.29063979,86.48,86.425,10.413]
[1773352831537,10.406,86.478,86.425,10.413]
[1773352831739,10.406,86.478,86.383,14.23623795]
[1773352831740,4.88463979,86.495,86.42,9.17318316]
[1773352831935,10.402,86.516,86.44,9.17318316]
[1773352832142,4.88463979,86.523,86.477,10.406]
[1773352833733,10.401,86.521,86.46,9.17318316]
[1773352833939,4.88806821,86.52,86.43,14.25258636]
[1773352834135,4.88806821,86.478,86.42,9.17318316]
[1773352834341,4.88806821,86.478,86.4,9.17318316]
[1773352835841,4.87880284,86.469,86.422,10.413]
[1773352836447,15.28680284,86.468,86.422,10.413]
[1773352844347,15.28680284,86.468,86.428,10.412]
[1773352845554,4.7617219,86.467,86.428,10.412]
[1773352846650,4.7617219,86.465,86.418,10.413]
[1773352847753,4.7617219,86.465,86.388,14.25258636]
[1773352847954,4.71774637,86.484,86.4,9.17318316]
[1773352848857,10.406,86.482,86.441,10.411]
[1773352849049,4.71884554,86.481,86.441,10.411]
[1773352849854,4.71884554,86.479,86.441,10.411]
[1773352850256,4.71884554,86.479,86.427,10.412]
[1773352850447,4.71884554,86.479,86.402,35.08358636]
[1773352850650,4.71884554,86.478,86.402,14.25258636]
[1773352851358,4.71884554,86.478,86.405,14.25258636]
[1773352851555,4.71884554,86.478,86.42,3.42441734]
[1773352851954,4.71884554,86.478,86.432,10.412]
[1773352852758,4.72472575,86.473,86.432,10.412]
[1773352853063,4.72472575,86.473,86.42,3.42441734]
[1773352853759,4.72472575,86.473,86.403,14.25258636]
[1773352854060,4.72472575,86.473,86.433,10.412]
[1773352861465,4.72472575,86.473,86.439,10.411]
[1773352864171,29.97916421,86.51,86.4,30.00516421]
[1773352864172,4.7277926,86.485,86.445,10.41]
[1773352865277,4.71276054,86.483,86.445,10.41]
[1773352867868,4.69558462,86.481,86.445,10.41]
[1773352869674,4.69558462,86.481,86.451,10.409]
[1773352874080,4.67160821,86.505,86.45,3.42335631]
[1773352874581,4.67160821,86.505,86.46,3.42335631]
[1773352875782,4.67160821,86.505,86.45,3.42184543]
[1773352876083,4.67160821,86.505,86.466,10.408]
[1773352878976,4.67160821,86.505,86.471,10.407]
[1773352893989,4.78049953,86.517,86.476,10.406]
[1773352894194,4.78049953,86.529,86.48,3.42184543]
[1773352894798,4.78049953,86.529,86.492,10.405]
[1773352895304,4.77885883,86.541,86.499,10.404]
[1773352895796,4.77885883,86.541,86.505,10.403]
[1773352911807,4.72499313,86.539,86.5,3.42184543]
[1773352912010,4.72499313,86.539,86.497,10.404]
[1773352913002,4.72499313,86.535,86.497,10.404]
[1773352918315,10.4,86.534,86.497,10.404]
[1773352918517,4.62845484,86.533,86.497,10.404]
[1773352919611,4.61682564,86.53,86.48,3.42184543]
[1773352919811,10.78435133,86.587,86.439,20.822]
[1773352919812,4.61682564,86.519,86.46,3.42184543]
[1773352921016,3.42184543,86.52,86.462,10.408]
[1773352921017,4.61682564,86.505,86.462,10.408]
[1773352924115,4.62316004,86.502,86.46,3.42184543]
[1773352925913,10.404,86.498,86.46,3.42184543]
[1773352926112,14.98332107,86.498,86.46,3.42184543]
[1773352927121,4.58042565,86.495,86.454,10.409]
[1773352929827,3.42184543,86.47,86.41,3.42184543]
[1773352930029,4.57673209,86.469,86.41,3.42184543]
[1773352930326,4.57673209,86.469,86.382,20.836]
[1773352930327,4.57673209,86.448,86.402,10.415]
[1773352930524,4.57673209,86.469,86.42,3.42184543]
[1773352930724,4.57673209,86.48,86.43,3.42184543]
[1773352930919,10.78435133,86.521,86.377,36.4]
[1773352930920,4.57673209,86.499,86.451,10.409]
[1773352931125,4.57673209,86.499,86.46,3.42184543]
[1773352931931,4.57673209,86.499,86.461,10.408]
[1773352933223,4.57673209,86.499,86.46,3.42184543]
[1773352935526,4.57673209,86.499,86.46,3.42164906]
[1773352938238,4.57673209,86.499,86.462,10.408]
[1773352938836,4.57673209,86.499,86.454,10.409]
[1773352939826,4.64354377,86.497,86.44,3.42164906]
[1773352940135,4.64354377,86.489,86.43,3.42164906]
[1773352940332,36.4,86.52,86.41,3.42164906]
[1773352940333,3.42164906,86.47,86.41,3.42164906]
[1773352940537,4.64354377,86.469,86.41,3.42164906]
[1773352941337,4.69438671,86.464,86.42,10.413]
[1773352942940,4.69438671,86.462,86.42,10.413]
[1773352943135,4.6892341,86.449,86.39,3.42164906]
[1773352944837,15.1002341,86.44,86.392,10.417]
[1773352946041,15.1002341,86.44,86.399,10.416]
[1773352946540,4.6892341,86.44,86.399,10.416]
[1773352951139,4.73505917,86.437,86.391,10.417]
[1773352952039,4.73505917,86.475,86.41,3.42164906]
[1773352952243,4.73505917,86.5,86.45,3.42164906]
[1773352952441,4.73505917,86.5,86.46,3.42164906]
[1773352952947,4.73505917,86.5,86.45,3.42164906]
[1773352953941,15.18719526,86.499,86.452,10.409]
[1773352954448,4.78319526,86.498,86.452,10.409]
[1773352954844,4.78319526,86.479,86.43,3.42164906]
[1773352955045,4.78319526,86.479,86.42,3.42164906]
[1773352955448,20.803,86.519,86.42,3.42164906]
[1773352955449,4.80653455,86.466,86.42,3.42164906]
[1773352955741,4.80653455,86.479,86.43,3.42164906]
[1773352955946,10.406,86.477,86.432,10.412]
[1773352956945,10.407,86.47,86.43,3.42164906]
[1773352957151,4.80653455,86.479,86.43,3.42164906]
[1773352957352,3.42164906,86.47,86.42,3.42164906]
[1773352958154,3.42164906,86.47,86.426,10.412]
[1773352960251,3.42164906,86.47,86.432,10.412]
[1773352960450,15.23039038,86.478,86.432,10.412]
[1773352960652,4.82439038,86.477,86.432,10.412]
[1773352962056,4.82583342,86.469,86.41,3.42164906]
[1773352962353,3.42164906,86.45,86.4,3.42164906]
[1773352962549,3.42164906,86.44,86.383,14.25258636]
[1773352962757,4.82583342,86.439,86.38,3.42164906]
[1773352963059,4.82583342,86.439,86.39,3.42164906]
[1773352963753,4.825539,86.483,86.43,3.42164906]
[1773352963949,4.825539,86.496,86.46,3.42164906]
[1773352964155,4.825539,86.494,86.426,14.25258636]
[1773352964354,4.825539,86.494,86.44,3.42164906]
[1773352964853,4.825539,86.465,86.42,3.42164906]
[1773352965154,4.825539,86.465,86.382,36.42]
[1773352965155,4.825539,86.465,86.41,3.42164906]
[1773352965347,4.81928544,86.464,86.421,10.413]
[1773352967157,4.82799493,86.459,86.4,3.42164906]
[1773352967847,4.82799493,86.484,86.43,3.42164906]
[1773352968051,4.82799493,86.484,86.44,3.42164906]
[1773352968451,15.23399493,86.483,86.442,10.411]
[1773352968652,4.82799493,86.482,86.442,10.411]
[1773352969558,4.82799493,86.482,86.44,3.42164906]
[1773352975352,4.86139766,86.497,86.45,3.42164906]
[1773352975558,4.86139766,86.497,86.46,3.42164906]
[1773352975954,4.86139766,86.497,86.45,3.42164906]
[1773352976261,10.404,86.496,86.45,3.42164906]
[1773352976756,10.405,86.49,86.45,3.42164906]
[1773352978465,4.86393641,86.487,86.44,3.42164906]
[1773352979963,10.406,86.48,86.44,3.42164906]
[1773352983765,3.42164906,86.51,86.46,3.42164906]
[1773352983971,4.87190775,86.509,86.46,3.42164906]
[1773352984368,4.87190775,86.502,86.462,10.408]
[1773352986871,4.87190775,86.502,86.46,3.42164906]
[1773352991470,10.402,86.511,86.461,10.408]
[1773352991666,3.42164906,86.53,86.47,3.42164906]
[1773352991872,4.87128972,86.529,86.47,3.42164906]
[1773352992863,4.87128972,86.513,86.47,3.42164906]
[1773352993974,4.87128972,86.513,86.46,3.42164906]
[1773352994974,4.8748204,86.509,86.465,10.408]
[1773352995271,4.8748204,86.509,86.46,3.42164906]
[1773352995574,4.8748204,86.509,86.44,21.37887955]
[1773352995575,4.87607206,86.482,86.44,3.42164906]
[1773352995766,4.87607206,86.499,86.45,3.42164906]
[1773352995971,10.404,86.498,86.454,10.409]
[1773352996171,4.87607206,86.499,86.46,3.42164906]
[1773352996368,4.87607206,86.519,86.46,3.42164906]
[1773352997676,5.02351837,86.509,86.45,3.42183827]
[1773352997875,5.02351837,86.506,86.46,10.408]
[1773352998869,5.02351837,86.503,86.46,10.408]
[1773352999175,5.02351837,86.503,86.423,36.42]
[1773352999176,5.06903921,86.479,86.427,14.25258636]
[1773352999379,5.06903921,86.479,86.42,3.42183827]
[1773352999576,5.06903921,86.469,86.42,3.42183827]
[1773352999974,5.06903921,86.499,86.46,3.42183827]
[1773353000174,5.06903921,86.499,86.396,28.50517273]
[1773353000175,5.06903921,86.519,86.48,3.42183827]
[1773353000983,5.06903921,86.518,86.48,3.42183827]
[1773353001790,5.06903921,86.518,86.441,21.37887955]
[1773353001791,5.03735752,86.499,86.445,14.25258636]
[1773353001984,5.03735752,86.499,86.406,28.50517273]
[1773353001985,5.03735752,86.479,86.43,3.42183827]
[1773353002285,5.03735752,86.479,86.42,3.42183827]
[1773353002484,5.03735752,86.478,86.43,3.42183827]
[1773353003079,5.03735752,86.478,86.434,10.411]
[1773353004783,36.42,86.505,86.44,3.42183827]
[1773353004784,5.03562122,86.492,86.44,3.42183827]
[1773353005185,5.03562122,86.492,86.45,3.42183827]
[1773353005690,5.03814927,86.489,86.43,3.42183827]
[1773353005882,5.03814927,86.489,86.418,36.42]
[1773353005883,5.03814927,86.479,86.423,14.37035905]
[1773353006080,3.42183827,86.47,86.42,3.42183827]
[1773353006284,3.42183827,86.47,86.418,50.79035905]
[1773353006482,5.03814927,86.469,86.415,14.37035905]
[1773353006791,5.03814927,86.469,86.41,3.42183827]
[1773353007492,5.05032575,86.498,86.44,3.42183827]
[1773353007690,5.05032575,86.498,86.419,14.37035905]
[1773353007691,5.05032575,86.498,86.45,3.42183827]
[1773353008484,5.05032575,86.498,86.44,3.42183827]
[1773353009194,5.04184268,86.495,86.45,3.42183827]
[1773353009691,5.04184268,86.495,86.447,14.37035905]
[1773353010193,5.04184268,86.495,86.448,14.37035905]
[1773353010589,5.04184268,86.495,86.43,9.16597939]
[1773353010590,5.04184268,86.495,86.443,14.37035905]
[1773353010992,5.04184268,86.495,86.462,10.408]
[1773353011993,5.04184268,86.495,86.468,10.407]
[1773353012395,5.04184268,86.495,86.461,10.408]
[1773353020599,10.403,86.507,86.461,10.408]
[1773353020804,10.403,86.507,86.468,10.407]
[1773353021700,10.403,86.507,86.428,36.42]
[1773353021701,5.05626055,86.543,86.476,14.37035905]
[1773353021905,5.05626055,86.543,86.481,14.37035905]
[1773353022206,5.05626055,86.541,86.491,10.405]
[1773353023107,5.05626055,86.537,86.491,10.405]
[1773353023307,5.05626055,86.537,86.483,10.406]
[1773353023606,5.11078613,86.527,86.483,10.406]